bitfinex-derivatives/quotes_SOLF0:USTF0_20260104
["timestamp","ask_amount","ask_price","bid_price","bid_amount"]
[1767508195224,0.05565903,134.46,134.43,18.70453838]
[1767508200137,0.05565903,134.46,134.43,17.20702486]
[1767508202136,0.05565903,134.46,134.43,0.0519447]
[1767508202734,2.86478785,134.46,134.43,0.0519447]
[1767508205249,0.05565903,134.46,134.43,0.0519447]
[1767508208148,2.86478785,134.46,134.43,0.0519447]
[1767508208449,2.86478785,134.46,134.41,89.38305603]
[1767508209455,2.86478785,134.46,134.42,0.04927577]
[1767508217571,0.05565903,134.46,134.42,0.04927577]
[1767508219163,0.05565903,134.46,134.42,1.56647754]
[1767508219356,2.80912882,134.49,134.43,1.51720177]
[1767508219558,5.75372662,134.48,134.43,1.51720177]
[1767508219759,2.80912882,134.49,134.43,1.51720177]
[1767508220065,5.75372787,134.48,134.43,1.51720177]
[1767508220270,2.80912882,134.49,134.43,1.51720177]
[1767508220461,0.0470998,134.47,134.43,1.51720177]
[1767508223868,2.80912882,134.51,134.43,1.51720177]
[1767508224166,2.80912882,134.53,134.47,1.47270454]
[1767508224666,2.80912882,134.55,134.48,1.4733366]
[1767508224962,0.0566298,134.53,134.5,0.0509]
[1767508239075,0.0566298,134.53,134.5,1.53404897]
[1767508241383,9.54383845,134.57,134.5,1.53404897]
[1767508241581,2.85273845,134.56,134.5,1.53404897]
[1767508242482,0.04839326,134.54,134.5,1.53404897]
[1767508257889,2.85273845,134.56,134.5,1.53404897]
[1767508258185,2.85273845,134.56,134.51,1.49322928]
[1767508258891,0.04750167,134.55,134.51,1.49322928]
[1767508260601,2.80105151,134.61,134.53,1.44797027]
[1767508260799,2.80105151,134.64,134.55,1.44797027]
[1767508260983,2.80105151,134.62,134.55,89.28797027]
[1767508261495,0.05604077,134.6,134.57,0.05481918]
[1767508267401,0.05604077,134.6,134.57,1.50599938]
[1767508267604,2.80105151,134.63,134.57,1.50599938]
[1767508268605,0.05254401,134.61,134.57,1.50599938]
[1767508272499,0.05254401,134.61,134.58,1.14514068]
[1767508272700,0.05254401,134.61,134.59,1.45354089]
[1767508274213,0.05254401,134.61,134.57,2.6544075]
[1767508274515,0.05254401,134.61,134.58,1.45444764]
[1767508276716,2.85359552,134.61,134.57,0.05481918]
[1767508277617,2.80105151,134.6,134.53,1.45576908]
[1767508277918,2.80105151,134.6,134.53,89.25576908]
[1767508278719,0.05516702,134.58,134.55,0.05063227]
[1767508281216,2.85621853,134.58,134.55,0.05063227]
[1767508281610,2.85621853,134.58,134.52,87.8]
[1767508282624,2.85621853,134.58,134.54,0.05352555]
[1767508291420,2.85621853,134.58,134.51,1.51228043]
[1767508292430,2.79849379,134.56,134.49,1.56930787]
[1767508292626,2.79849379,134.56,134.49,89.38930787]
[1767508293030,2.79849379,134.56,134.5,1.62248497]
[1767508293631,0.05308013,134.54,134.52,0.04942434]
[1767508298632,2.79849379,134.56,134.52,0.04942434]
[1767508299632,6.6902,134.59,134.52,0.04942434]
[1767508299633,2.79849379,134.58,134.52,2.81964181]
[1767508299818,0.05353971,134.55,134.52,2.81964181]
[1767508300021,2.79849379,134.58,134.52,2.81964181]
[1767508300933,0.0522137,134.56,134.52,2.81964181]
[1767508301634,2.85070749,134.56,134.52,0.04942434]
[1767508313138,2.79849379,134.55,134.48,2.77256239]
[1767508314142,0.04708466,134.53,134.48,2.77256239]
[1767508314444,0.04708466,134.53,134.48,1.62742171]
[1767508314647,0.04708466,134.53,134.48,2.77256239]
[1767508315749,0.04708466,134.53,134.46,90.61531163]
[1767508315750,2.84557845,134.53,134.46,90.61531163]
[1767508316550,2.84557845,134.53,134.48,0.0506276]
[1767508317050,0.04708466,134.53,134.48,2.82622742]
[1767508321036,2.91638346,134.53,134.48,2.82622742]
[1767508321247,5.7118788,134.52,134.48,2.82622742]
[1767508321452,2.91638346,134.53,134.48,2.82622742]
[1767508321644,8.58026302,134.52,134.48,1.19576828]
[1767508321848,2.8692988,134.52,134.48,0.0506276]
[1767508323345,5.71209033,134.51,134.48,0.0506276]
[1767508323648,2.8692988,134.52,134.48,0.0506276]
[1767508323946,5.71157106,134.51,134.48,0.0506276]
[1767508324151,2.8692988,134.52,134.48,0.0506276]
[1767508325952,2.8692988,134.5,134.44,2.77925657]
[1767508326550,2.8692988,134.51,134.45,1.68499734]
[1767508326945,0.05307897,134.49,134.47,0.05424449]
[1767508327749,0.05307897,134.49,134.44,1.14514068]
[1767508328660,0.05307897,134.49,134.45,0.04913784]
[1767508331356,0.05307897,134.49,134.4,126.5407]
[1767508331357,2.8692988,134.48,134.4,1.73537002]
[1767508331560,8.5711904,134.47,134.4,2.8805107]
[1767508331752,2.8692988,134.47,134.4,2.8805107]
[1767508332362,0.05440367,134.45,134.42,0.05664401]
[1767508334552,2.8692988,134.49,134.42,1.79274189]
[1767508334749,2.8692988,134.49,134.42,3.53046286]
[1767508334956,2.8692988,134.49,134.43,1.73609788]
[1767508335765,0.05654821,134.47,134.45,0.05072734]
[1767508340475,2.8692988,134.5,134.45,0.05072734]
[1767508341874,0.04755143,134.49,134.45,0.05072734]
[1767508343077,2.91685023,134.49,134.45,0.05072734]
[1767508344478,0.04755143,134.49,134.45,1.78876642]
[1767508347180,0.04755143,134.49,134.45,0.05072734]
[1767508347378,2.91685023,134.49,134.45,0.05072734]
[1767508347578,2.91685023,134.49,134.45,1.7892835]
[1767508347579,0.04755143,134.49,134.45,1.7892835]
[1767508350184,1.79436498,134.55,134.45,1.7892835]
[1767508350185,2.95087771,134.56,134.46,1.7400523]
[1767508350388,2.95087771,134.56,134.49,1.7400523]
[1767508351491,0.05335,134.54,134.51,0.04902693]
[1767508352483,2.83543112,134.54,134.51,0.04902693]
[1767508352885,2.83543112,134.54,134.47,1.73913682]
[1767508360498,2.83543112,134.54,134.49,0.04854831]
[1767508365594,2.83543112,134.54,134.49,1.83856883]
[1767508366193,2.78208112,134.56,134.5,1.79015075]
[1767508366398,2.78208112,134.58,134.5,1.79015075]
[1767508366601,5.69774802,134.57,134.5,1.79015075]
[1767508366801,2.78208112,134.58,134.5,1.79015075]
[1767508366999,2.78208112,134.58,134.52,1.79015075]
[1767508367000,5.69775051,134.57,134.52,1.79015075]
[1767508367205,2.78208112,134.58,134.52,1.79015075]
[1767508367405,0.04965434,134.56,134.53,0.04791997]
[1767508368295,2.83173546,134.56,134.53,0.04791997]
[1767508369106,2.83173546,134.56,134.5,1.79040673]
[1767508370404,2.83173546,134.56,134.48,6.6951]
[1767508370795,2.83173546,134.56,134.48,1.89225649]
[1767508371500,2.83173546,134.56,134.51,0.05697452]
[1767508372209,2.78208112,134.54,134.47,87.86]
[1767508373009,2.78208112,134.54,134.47,89.75250091]
[1767508373400,0.05157592,134.52,134.47,89.75250091]
[1767508374509,0.05157592,134.52,134.47,1.89250091]
[1767508374710,0.05157592,134.52,134.48,0.05196911]
[1767508375205,2.83365704,134.52,134.48,0.05196911]
[1767508380012,2.83365704,134.52,134.44,87.86]
[1767508380414,2.94400875,134.5,134.44,87.86]
[1767508380915,2.94400875,134.5,134.44,89.8076319]
[1767508381114,0.05611739,134.48,134.46,0.05310722]
[1767508382517,3.00012614,134.48,134.42,96.55924842]
[1767508383018,3.00012614,134.48,134.42,89.86114842]
[1767508384827,2.94400875,134.47,134.4,2.00154838]
[1767508386022,0.05375598,134.45,134.42,0.02734696]
[1767508400743,9.63980875,134.48,134.42,0.02734696]
[1767508400929,2.94400875,134.48,134.42,2.03388089]
[1767508401444,2.94400875,134.48,134.42,3.18222727]
[1767508401744,0.05526714,134.46,134.42,3.18222727]
[1767508401932,0.05526714,134.46,134.43,2.00682464]
[1767508402134,9.63870875,134.5,134.43,2.00682464]
[1767508402337,2.94400875,134.49,134.42,1.14834638]
[1767508402541,2.94400875,134.48,134.42,1.14834638]
[1767508402841,2.94400875,134.48,134.43,2.007112]
[1767508403340,0.05135977,134.47,134.44,0.05041682]
[1767508404040,2.99536852,134.47,134.4,1.14834638]
[1767508404339,2.99536852,134.47,134.4,3.20615927]
[1767508404938,2.99536852,134.47,134.4,2.05781289]
[1767508405241,2.99536852,134.47,134.42,0.05160686]
[1767508406737,2.94400875,134.45,134.38,2.05864566]
[1767508406931,2.94400875,134.45,134.37,1.29466694]
[1767508406932,2.94400875,134.45,134.37,1.14834638]
[1767508407837,0.04801179,134.42,134.37,1.14834638]
[1767508408439,2.99202054,134.42,134.36,2.11025252]
[1767508408838,2.99202054,134.42,134.35,3.25913825]
[1767508409031,2.99202054,134.42,134.35,2.11079187]
[1767508409428,2.99202054,134.42,134.35,3.25913825]
[1767508410041,2.99202054,134.42,134.37,0.0343464]
[1767508410840,2.99202054,134.42,134.31,146.24676398]
[1767508410841,2.76992197,134.41,134.32,8.81638755]
[1767508411054,2.76992197,134.41,134.33,2.14763395]
[1767508411943,0.05666693,134.38,134.33,2.14763395]
[1767508412745,0.05666693,134.38,134.34,1.14834638]
[1767508413145,0.05666693,134.38,134.33,2.14763395]
[1767508413349,9.69755675,134.43,134.35,3.29858656]
[1767508413648,2.99935675,134.42,134.35,3.29858656]
[1767508414548,0.0557109,134.4,134.37,0.05334844]
[1767508415951,2.99935675,134.44,134.37,3.35286779]
[1767508416151,2.99935675,134.44,134.37,2.20452141]
[1767508416752,2.99935675,134.43,134.37,0.05334844]
[1767508416947,0.05585344,134.41,134.37,0.05334844]
[1767508417347,3.05521019,134.41,134.37,0.05334844]
[1767508418750,3.05521019,134.41,134.34,1.14834638]
[1767508419055,2.99935675,134.4,134.32,91.27411546]
[1767508419942,0.05173138,134.37,134.32,91.27411546]
[1767508420146,0.05173138,134.37,134.32,3.35411546]
[1767508420346,0.05173138,134.37,134.33,2.20657716]
[1767508420756,0.05173138,134.37,134.34,0.04915296]
[1767508422559,3.05108813,134.37,134.31,20.55006535]
[1767508425159,3.05108813,134.37,134.31,21.69841173]
[1767508430263,3.05108813,134.37,134.31,20.55006535]
[1767508430464,3.05108813,134.37,134.31,21.69841173]
[1767508431361,3.05108813,134.37,134.32,2.21119327]
[1767508432367,3.05108813,134.37,134.32,3.35953965]
[1767508433369,2.99935675,134.43,134.35,2.16027299]
[1767508433555,2.99935675,134.43,134.37,2.16027299]
[1767508434160,2.99935675,134.43,134.38,1.14834638]
[1767508434361,2.99935675,134.45,134.38,3.30901794]
[1767508434556,0.05501898,134.42,134.39,0.04844981]
[1767508435056,2.99935675,134.45,134.39,2.20912137]
[1767508435264,2.99935675,134.45,134.4,1.14834638]
[1767508436169,3.05257336,134.44,134.39,1.19679619]
[1767508436372,3.05257336,134.44,134.4,0.0553103]
[1767508437577,0.05321661,134.44,134.41,3.31018641]
[1767508438874,2.99935675,134.51,134.43,1.14834638]
[1767508439075,2.99935675,134.51,134.43,3.31056699]
[1767508439971,0.05369826,134.48,134.46,0.0503003]
[1767508441375,0.05369826,134.48,134.43,3.31056699]
[1767508444776,2.86670474,134.48,134.39,2.21447045]
[1767508444973,2.81300648,134.48,134.41,3.36281683]
[1767508445172,2.81300648,134.48,134.43,0.05223316]
[1767508446284,0.05451106,134.47,134.43,0.05223316]
[1767508448981,4.01586392,134.47,134.39,2.21629901]
[1767508449183,2.81300648,134.46,134.39,2.21629901]
[1767508450178,0.05134786,134.44,134.39,2.21629901]
[1767508450589,0.05134786,134.44,134.37,2.26941113]
[1767508450590,2.86435434,134.44,134.37,2.26941113]
[1767508450788,2.81300648,134.44,134.37,2.26941113]
[1767508450986,0.04946798,134.42,134.37,2.26941113]
[1767508451484,0.04946798,134.42,134.38,0.0482528]
[1767508472523,3.01226253,134.42,134.38,0.0482528]
[1767508473122,3.01226253,134.42,134.35,107.63017154]
[1767508474923,3.01226253,134.42,134.35,19.71017154]
[1767508475820,3.01226253,134.42,134.37,0.05463184]
[1767508476424,2.96279455,134.4,134.33,2.27965431]
[1767508477525,0.05189685,134.38,134.33,2.27965431]
[1767508485929,9.66149455,134.42,134.33,2.27965431]
[1767508486128,5.6932528,134.41,134.33,2.27965431]
[1767508486327,9.66149455,134.42,134.33,2.27965431]
[1767508486633,8.65774798,134.41,134.33,2.27965431]
[1767508486823,2.96279455,134.41,134.33,2.27965431]
[1767508487020,0.04979042,134.38,134.36,0.05456097]
[1767508497534,2.96279455,134.41,134.36,2.28876873]
[1767508497733,9.66149455,134.42,134.36,2.28876873]
[1767508497935,5.71185173,134.41,134.36,2.28876873]
[1767508498126,9.66149455,134.42,134.36,2.28876873]
[1767508498330,5.71189628,134.41,134.36,2.28876873]
[1767508498531,0.05379526,134.4,134.36,2.28876873]
[1767508506448,2.91983946,134.44,134.36,2.28876873]
[1767508506644,5.71512183,134.43,134.36,2.28876873]
[1767508506846,2.91983946,134.41,134.36,2.28876873]
[1767508507050,2.91983946,134.41,134.36,0.05456097]
[1767508507246,5.71511524,134.4,134.36,0.05456097]
[1767508507551,0.05097846,134.39,134.36,0.05456097]
[1767508509841,0.05097846,134.39,134.32,8.94351065]
[1767508509842,2.97081792,134.39,134.32,8.94351065]
[1767508510937,2.97081792,134.39,134.34,0.05301716]
[1767508511847,5.71122533,134.38,134.34,0.05301716]
[1767508512046,2.97081792,134.39,134.34,0.05301716]
[1767508512251,8.63143988,134.38,134.34,0.05301716]
[1767508512454,2.91983946,134.38,134.34,0.05301716]
[1767508514961,2.91983946,134.36,134.31,18.3430911]
[1767508516057,0.04908115,134.35,134.31,20.63925471]
[1767508516366,0.04908115,134.35,134.32,0.04832909]
[1767508521166,2.91983946,134.38,134.32,0.04832909]
[1767508521466,8.62976622,134.37,134.32,0.04832909]
[1767508521666,2.91983946,134.37,134.32,0.04832909]
[1767508522269,0.04953533,134.36,134.32,0.04832909]
[1767508523470,2.91983946,134.39,134.33,2.2975104]
[1767508523662,5.70918318,134.38,134.33,2.2975104]
[1767508523973,5.70918318,134.37,134.33,2.2975104]
[1767508524167,2.91983946,134.39,134.33,2.2975104]
[1767508524669,0.04897782,134.37,134.33,2.2975104]
[1767508525065,2.91983946,134.41,134.34,1.14962076]
[1767508525263,5.71003098,134.4,134.35,2.29782809]
[1767508525564,2.91983946,134.41,134.35,2.29782809]
[1767508525870,2.91983946,134.41,134.36,1.14962076]
[1767508526059,2.91983946,134.43,134.36,2.29782809]
[1767508526371,2.91983946,134.43,134.35,87.96]
[1767508526372,5.7113641,134.42,134.38,2.34542005]
[1767508526572,2.91983946,134.43,134.38,2.34542005]
[1767508526774,5.71060498,134.42,134.38,2.34542005]
[1767508526974,2.91983946,134.43,134.38,2.34542005]
[1767508527175,5.71064963,134.42,134.38,2.34542005]
[1767508527365,0.05389194,134.41,134.38,2.34542005]
[1767508527565,2.91983946,134.43,134.38,2.34542005]
[1767508527762,5.70989052,134.42,134.38,2.34542005]
[1767508528075,2.91983946,134.43,134.38,2.34542005]
[1767508528367,5.70989052,134.42,134.38,2.34542005]
[1767508528573,0.04779186,134.43,134.39,1.14962076]
[1767508528774,0.04779186,134.43,134.38,3.49504081]
[1767508543680,3.01856428,134.43,134.38,1.1970566]
[1767508543876,3.01856428,134.43,134.28,104.3018]
[1767508543877,2.97077242,134.4,134.34,2.30305706]
[1767508544275,2.97077242,134.38,134.32,2.3504929]
[1767508544582,2.97077242,134.38,134.31,18.3430911]
[1767508544775,2.97077242,134.38,134.31,20.69370795]
[1767508544982,0.04753883,134.36,134.33,0.05269342]
[1767508545183,0.04753883,134.36,134.33,2.40343281]
[1767508546277,10.82009318,134.4,134.33,2.40343281]
[1767508547285,0.04823993,134.38,134.33,2.40343281]
[1767508553694,4.16863311,134.38,134.33,0.05269342]
[1767508553892,2.97077242,134.37,134.33,0.05269342]
[1767508554985,0.04823993,134.38,134.33,0.05269342]
[1767508563002,2.85887911,134.38,134.33,0.05269342]
[1767508566900,0.04823993,134.38,134.34,2.3518779]
[1767508567096,3.96025994,134.42,134.34,3.50149866]
[1767508567403,5.69059512,134.41,134.35,2.35200863]
[1767508567601,3.96025994,134.42,134.35,2.35200863]
[1767508568004,2.81063918,134.42,134.35,2.35200863]
[1767508568212,2.81063918,134.42,134.34,1.14962076]
[1767508568213,0.05541133,134.4,134.37,0.05220591]
[1767508569402,0.05541133,134.4,134.37,2.40447152]
[1767508573403,0.05541133,134.4,134.37,0.05220591]
[1767508573609,0.05541133,134.4,134.32,126.6225]
[1767508573610,2.86605051,134.4,134.33,91.44238285]
[1767508573802,2.86605051,134.4,134.34,2.404968]
[1767508574710,0.05541133,134.4,134.34,2.404968]
[1767508575109,0.05541133,134.4,134.36,0.04908727]
[1767508577107,0.05541133,134.4,134.36,2.45441286]
[1767508584714,0.05541133,134.4,134.36,0.04908727]
[1767508584715,2.86605051,134.4,134.36,0.04908727]
[1767508598025,2.86605051,134.4,134.33,87.94]
[1767508598231,2.86605051,134.4,134.32,97.05106355]
[1767508598432,2.86605051,134.4,134.33,2.45710377]
[1767508599132,2.86605051,134.4,134.35,0.05289138]
[1767508603330,5.71746823,134.39,134.35,0.05289138]
[1767508603535,2.86605051,134.4,134.35,0.05289138]
[1767508603731,3.0244975,134.44,134.36,2.45320318]
[1767508604029,8.74260708,134.43,134.37,2.45320318]
[1767508604233,5.71810958,134.42,134.37,2.45320318]
[1767508604832,0.04916306,134.41,134.38,0.05016913]
[1767508619353,3.07366056,134.41,134.38,0.05016913]
[1767508625251,3.07366056,134.41,134.35,2.44209592]
[1767508626362,3.07366056,134.41,134.37,0.05477241]
[1767508633766,3.07366056,134.41,134.34,89.73598928]
[1767508633963,3.07366056,134.41,134.34,92.22383243]
[1767508634866,3.07366056,134.41,134.36,2.5390094]
[1767508636473,3.07366056,134.41,134.36,3.6879597]
[1767508641183,0.04916306,134.41,134.36,3.6879597]
[1767508641487,0.04916306,134.41,134.37,2.48476911]
[1767508642481,2.99890345,134.44,134.4,1.1489503]
[1767508642674,2.99890345,134.46,134.42,1.1489503]
[1767508643586,0.04862027,134.45,134.43,0.04801241]
[1767508643785,6.6951,134.49,134.43,0.04801241]
[1767508643786,2.99890345,134.48,134.43,0.04801241]
[1767508644086,5.63637875,134.47,134.43,0.04801241]
[1767508644283,2.99890345,134.48,134.43,0.04801241]
[1767508644485,5.63390195,134.47,134.43,0.04801241]
[1767508644776,0.04947402,134.46,134.43,0.04801241]
[1767508652895,3.10089234,134.46,134.43,0.04801241]
[1767508656303,3.05141832,134.5,134.45,3.62499293]
[1767508657501,0.0477879,134.49,134.46,0.05311293]
[1767508661400,3.09920622,134.49,134.46,0.05311293]
[1767508665109,3.05141832,134.48,134.39,91.43799181]
[1767508665697,3.05141832,134.48,134.4,2.3984208]
[1767508666005,3.05141832,134.48,134.43,0.04891147]
[1767508666209,0.05524937,134.45,134.43,0.04891147]
[1767508670604,3.10666769,134.45,134.4,2.3984208]
[1767508670801,3.10666769,134.45,134.39,89.0289503]
[1767508671007,3.10666769,134.45,134.38,3.54498577]
[1767508671717,3.10666769,134.45,134.4,0.05001827]
[1767508682522,3.10666769,134.45,134.38,1.1489503]
[1767508683319,1.20419967,134.45,134.36,17.4257922]
[1767508683521,2.79431608,134.42,134.35,90.2198866]
[1767508683719,2.84911904,134.42,134.34,89.0489503]
[1767508684019,2.84911904,134.42,134.34,87.9]
[1767508684622,2.84911904,134.42,134.34,90.26635852]
[1767508685626,2.84911904,134.42,134.37,0.05109357]
[1767508687430,9.54771904,134.42,134.37,0.05109357]
[1767508687729,2.79431608,134.4,134.37,0.05109357]
[1767508690023,2.79431608,134.4,134.31,18.3430911]
[1767508690319,2.79431608,134.4,134.32,3.47615989]
[1767508691227,0.05062913,134.37,134.35,0.05678907]
[1767508692627,2.84494521,134.37,134.35,0.05678907]
[1767508692828,2.84494521,134.37,134.32,2.32720959]
[1767508694124,0.05062913,134.37,134.32,2.32720959]
[1767508694428,0.05062913,134.37,134.33,3.54412089]
[1767508694620,0.05062913,134.37,134.33,2.39517059]
[1767508694815,0.05062913,134.37,134.33,3.54412089]
[1767508696734,0.05062913,134.37,134.33,2.39517059]
[1767508700136,0.05062913,134.37,134.33,0.04783437]
[1767508700137,2.84494521,134.37,134.33,0.04783437]
[1767508705530,0.05062913,134.37,134.33,2.32256566]
[1767508705733,2.79431608,134.45,134.35,2.22410216]
[1767508705937,2.79431608,134.43,134.35,2.22410216]
[1767508706739,0.05577045,134.4,134.38,0.04925055]
[1767508706940,2.79431608,134.42,134.38,0.04925055]
[1767508708047,0.05492022,134.41,134.38,0.04925055]
[1767508712156,2.63440765,134.41,134.38,0.04925055]
[1767508712846,2.63440765,134.41,134.35,2.22410216]
[1767508714047,2.63440765,134.41,134.37,0.05544002]
[1767508717451,2.63440765,134.41,134.33,2.21058176]
[1767508717655,2.81359023,134.39,134.33,2.21058176]
[1767508718552,0.05589438,134.37,134.35,0.04954338]
[1767508720460,2.86948461,134.37,134.35,0.04954338]
[1767508720661,2.86948461,134.37,134.31,20.57839358]
[1767508723557,2.86948461,134.37,134.31,18.3430911]
[1767508725053,2.86948461,134.37,134.31,20.55840835]
[1767508726263,2.86948461,134.37,134.32,2.20564036]
[1767508728566,2.86948461,134.37,134.31,18.3430911]
[1767508728768,2.81359023,134.35,134.31,18.3430911]
[1767508729657,2.86948461,134.37,134.31,18.3430911]
[1767508729955,5.6465789,134.36,134.31,18.3430911]
[1767508730161,5.6465789,134.35,134.31,18.3430911]
[1767508730355,2.81359023,134.36,134.31,18.3430911]
[1767508740075,2.81359023,134.36,134.31,20.49001888]
[1767508741878,0.05589438,134.37,134.32,2.13886583]
[1767508745283,9.2262751,134.4,134.33,2.06735382]
[1767508746574,0.0491734,134.38,134.35,0.04748915]
[1767508756493,2.5758485,134.38,134.35,0.04748915]
[1767508756702,2.5758485,134.38,134.32,2.02919504]
[1767508759895,2.5266751,134.37,134.32,2.02919504]
[1767508762200,9.2277751,134.37,134.32,2.02919504]
[1767508763099,2.5266751,134.36,134.31,18.3430911]
[1767508763298,0.04991097,134.35,134.31,18.3430911]
[1767508770005,0.04991097,134.35,134.31,20.33316158]
[1767508771900,2.69486788,134.35,134.31,18.3430911]
[1767508776803,8.14006278,134.34,134.31,15.10635582]
[1767508777004,2.46385595,134.34,134.31,15.10635582]
[1767508778014,9.16645595,134.34,134.31,15.10635582]
[1767508778803,2.46385595,134.33,134.31,12.41239024]
[1767508779010,2.46385595,134.33,134.31,9.71842466]
[1767508780514,6.7026,134.34,134.31,9.71842466]
[1767508786120,6.7031,134.33,134.31,2.466e-05]
[1767508800332,9.3464673,134.33,134.31,2.466e-05]
[1767508803635,9.3464673,134.33,134.23,1.29584807]
[1767508803636,2.6433673,134.31,134.25,2.59563436]
[1767508803835,0.05155898,134.29,134.25,2.59563436]
[1767508804131,2.69492628,134.29,134.23,2.59563436]
[1767508804935,9.40002628,134.29,134.23,2.59563436]
[1767508805433,6.7055,134.28,134.23,2.59563436]
[1767508805826,9.3488673,134.28,134.23,2.59563436]
[1767508806230,106.9530673,134.28,134.23,2.59563436]
[1767508807135,6.7067,134.26,134.17,2.59563436]
[1767508807440,6.7067,134.26,134.2,2.59563436]
[1767508807441,0.05053818,134.23,134.2,2.59563436]
[1767508808334,6.7067,134.26,134.2,2.59563436]
[1767508808540,6.7067,134.26,134.21,3.74532634]
[1767508809236,6.7067,134.26,134.21,2.59563436]
[1767508809541,0.0498879,134.25,134.21,2.59563436]
[1767508813234,6.7569879,134.25,134.21,2.59563436]
[1767508819853,9.4003552,134.25,134.2,0.05056519]
[1767508820045,9.3509673,134.24,134.2,0.05056519]
[1767508822044,6.7076,134.24,134.2,2.64619955]
[1767508822741,0.0498879,134.25,134.2,2.64619955]
[1767508824050,2.6932552,134.25,134.2,0.05056519]
[1767508824947,0.0498879,134.25,134.2,2.64619955]
[1767508826641,9.4003552,134.25,134.2,2.64619955]
[1767508833850,6.7569879,134.25,134.2,2.64619955]
[1767508834050,0.0498879,134.25,134.2,2.64619955]
[1767508834247,2.72694002,134.25,134.2,0.05056519]
[1767508834456,2.72694002,134.25,134.16,2.54856574]
[1767508834457,2.67705212,134.24,134.16,2.54856574]
[1767508835553,0.04724624,134.21,134.16,2.54856574]
[1767508839660,6.75654624,134.21,134.16,2.54856574]
[1767508839858,2.72429836,134.21,134.14,2.54856574]
[1767508840251,6.7096,134.2,134.14,2.54856574]
[1767508841055,2.72429836,134.21,134.14,2.54856574]
[1767508842362,6.7096,134.2,134.14,2.54856574]
[1767508842864,0.04724624,134.21,134.14,2.54856574]
[1767508843463,6.75634624,134.21,134.14,2.54856574]
[1767508843768,9.43339836,134.21,134.15,90.58856574]
[1767508845858,9.43339836,134.21,134.15,2.54856574]
[1767508846267,9.43339836,134.21,134.13,20.39615964]
[1767508846268,2.67705212,134.2,134.13,20.39615964]
[1767508846466,0.04789353,134.18,134.13,20.39615964]
[1767508847677,0.04789353,134.18,134.14,2.54856574]
[1767508849669,6.7088,134.22,134.14,2.54856574]
[1767508850768,6.7076,134.24,134.18,2.54856574]
[1767508851965,0.0567784,134.22,134.18,2.54856574]
[1767508853475,0.0567784,134.22,134.17,88.10829328]
[1767508853669,0.0567784,134.22,134.18,2.54856574]
[1767508853874,2.67705212,134.25,134.18,2.54856574]
[1767508854778,6.7077,134.24,134.18,2.54856574]
[1767508854982,0.05344477,134.23,134.2,0.05063637]
[1767508862492,9.44706105,134.22,134.16,2.73672458]
[1767508862779,2.73866105,134.21,134.16,2.73672458]
[1767508863580,0.04958303,134.2,134.16,2.73672458]
[1767508865189,0.04958303,134.2,134.17,0.05396544]
[1767508867791,2.78824408,134.2,134.11,8.01070388]
[1767508867994,5.6836011,134.19,134.11,2.73672458]
[1767508868187,2.73866105,134.21,134.13,2.73672458]
[1767508868391,5.68250042,134.2,134.13,2.73672458]
[1767508868685,2.73866105,134.21,134.13,2.73672458]
[1767508868886,2.73866105,134.23,134.16,2.78968098]
[1767508869085,5.68350232,134.22,134.16,2.78968098]
[1767508869286,2.73866105,134.23,134.16,2.78968098]
[1767508869485,8.42232541,134.22,134.16,2.78968098]
[1767508869695,2.73866105,134.22,134.16,2.78968098]
[1767508869997,0.04975792,134.2,134.16,2.78968098]
[1767508878500,2.78841897,134.2,134.14,2.73672458]
[1767508879496,5.68670679,134.19,134.14,2.73672458]
[1767508879702,2.78841897,134.2,134.14,2.73672458]
[1767508879996,9.49801897,134.2,134.14,2.73672458]
[1767508880704,2.73866105,134.18,134.12,2.73672458]
[1767508881802,0.0495937,134.16,134.11,88.06]
[1767508882298,6.7611937,134.16,134.1,2.73672458]
[1767508882503,2.73866105,134.15,134.1,2.73672458]
[1767508885297,9.45076105,134.15,134.08,90.81672458]
[1767508885698,0.0501712,134.13,134.09,2.73672458]
[1767508889902,2.73866105,134.11,134.05,90.81672458]
[1767508890208,0.05456715,134.09,134.05,2.73672458]
[1767508892306,2.51567522,134.13,134.05,2.73672458]
[1767508892812,2.51567522,134.13,134.06,3.81706205]
[1767508893212,0.05521846,134.11,134.08,0.05712011]
[1767508894304,2.61029597,134.1,134.03,2.66413247]
[1767508894811,2.61029597,134.12,134.05,2.66413247]
[1767508895309,0.05256081,134.1,134.02,2.66413247]
[1767508895515,0.05256081,134.1,134.04,3.81706205]
[1767508895810,0.05026595,134.08,134.04,3.81706205]
[1767508896014,0.05026595,134.08,134.05,2.66413247]
[1767508898318,0.05026595,134.08,134.02,2.66413247]
[1767508900814,2.66056192,134.08,134.02,2.66413247]
[1767508901016,2.66056192,134.08,134.0,88.1]
[1767508901017,2.61029597,134.07,134.0,90.76413247]
[1767508901214,0.05102061,134.05,134.0,2.66413247]
[1767508901415,0.05102061,134.05,134.0,91.93706205]
[1767508901813,0.05102061,134.05,134.01,2.66413247]
[1767508906226,10.47782555,134.1,134.03,2.66413247]
[1767508907124,0.04988766,134.08,134.05,0.05563605]
[1767508907522,0.04988766,134.08,134.05,0.0010689]
[1767508909423,9.32619597,134.07,134.05,0.0010689]
[1767508912733,0.04988766,134.08,134.05,0.0010689]